lending/lending_fUSD_20251018
["ID","MTS","AMOUNT","RATE_DAILY","PERIOD"]
[391789584,1760820646669,-250.0,0.00029471,7]
[391789586,1760820646680,-168.0,0.00029476,2]
[391789588,1760820646689,-155.0,0.0002953,3]
[391789591,1760820646699,-153.45199127,0.0002953,3]
[391789592,1760820646708,-513.56125807,0.00030136,2]
[391789594,1760820646718,-500.0,0.00030136,2]
[391789597,1760820646727,-500.7342724,0.00030136,2]
[391789598,1760820646737,-500.2474381,0.00030136,2]
[391789600,1760820646746,-500.0,0.00030136,2]
[391789602,1760820646755,-500.0,0.00030136,2]
[391789604,1760820646764,-508.68935484,0.00030136,2]
[391789607,1760820646774,-506.06982121,0.00030136,2]
[391789610,1760820646783,-517.10392413,0.00030136,2]
[391789613,1760820646794,-500.0,0.00030136,2]
[391789615,1760820646806,-500.0,0.00030136,2]
[391789617,1760820646815,-500.0,0.00030136,2]
[391789619,1760820646824,-500.0,0.00030136,2]
[391789621,1760820646833,-500.0,0.00030136,2]
[391789623,1760820646843,-500.0,0.00030136,2]
[391789625,1760820646852,-500.0,0.00030136,2]
[391789627,1760820646861,-502.72686316,0.00030136,2]
[391789629,1760820646870,-509.5945397,0.00030136,2]
[391789631,1760820646879,-504.25090923,0.00030136,2]
[391789633,1760820646888,-501.73080172,0.00030136,2]
[391789635,1760820646897,-500.0,0.00030136,2]
[391789637,1760820646907,-510.83720801,0.00030136,2]
[391789639,1760820646916,-512.75342286,0.00030136,2]
[391789641,1760820646925,-500.0,0.00030136,2]
[391789643,1760820646935,-500.0,0.00030136,2]
[391789645,1760820646945,-500.0,0.00030136,2]
[391789647,1760820646954,-505.73053102,0.00030136,2]
[391789649,1760820646963,-502.15984811,0.00030136,2]
[391789651,1760820646973,-500.0,0.00030136,2]
[391789653,1760820646982,-508.39112124,0.00030136,2]
[391789655,1760820646991,-500.0,0.00030136,2]
[391789657,1760820647000,-500.0,0.00030136,2]
[391789659,1760820647010,-227.53167364,0.00030136,2]
[391789661,1760820647019,-507.20835003,0.00030136,2]
[391789663,1760820647028,-508.9392147,0.00030136,2]
[391789665,1760820647037,-500.0,0.00030136,2]
[391789667,1760820647047,-500.0,0.00030136,2]
[391789669,1760820647055,-500.0,0.00030136,2]
[391789671,1760820647064,-503.66,0.00030136,7]
[391789673,1760820647074,-500.0,0.00030136,2]
[391789675,1760820647083,-574.19468822,0.00030136,2]
[391789677,1760820647092,-500.0,0.00030136,2]
[391789679,1760820647101,-500.0,0.00030136,2]
[391789681,1760820647111,-305.04340675,0.00030136,2]
[391789683,1760820647120,-335.83565391,0.00030136,2]
[391789685,1760820647129,-501.68123533,0.00030136,2]
[391789687,1760820647139,-500.80312547,0.00030136,2]
[391789689,1760820647148,-500.0,0.00030136,2]
[391789691,1760820647158,-444.46456881,0.00030136,2]
[391789693,1760820647167,-500.0,0.00030136,2]
[391789695,1760820647175,-500.0,0.00030136,2]
[391789697,1760820647185,-500.0,0.00030136,2]
[391789699,1760820647194,-504.17303106,0.00030136,2]
[391789701,1760820647204,-501.15291642,0.00030136,2]
[391789703,1760820647214,-508.62547016,0.00030136,2]
[391789705,1760820647223,-500.0,0.00030136,2]
[391789707,1760820647233,-500.97182263,0.00030136,2]
[391789709,1760820647242,-500.0,0.00030136,2]
[391789711,1760820647251,-502.0733064,0.00030136,2]
[391789713,1760820647262,-502.02156423,0.00030136,2]
[391789715,1760820647271,-505.00668014,0.00030136,2]
[391789717,1760820647280,-500.55952242,0.00030136,2]
[391789719,1760820647289,-500.0,0.00030136,2]
[391789721,1760820647299,-553.52331083,0.00030136,2]
[391789723,1760820647308,-500.99980871,0.00030173,5]
[391789725,1760820647317,-500.46153495,0.00030173,5]
[391789727,1760820647327,-500.0,0.00030173,5]
[391789729,1760820647336,-500.0,0.00030173,5]
[391789731,1760820647345,-254.35,0.00030358,2]
[391789733,1760820647353,-540.0,0.00030364,2]
[391789735,1760820647362,-168.0,0.00030393,2]
[391789736,1760820647371,-500.0,0.0003041,2]
[391789738,1760820647381,-503.66,0.0003041,7]
[391789741,1760820647390,-500.0,0.0003041,2]
[391789743,1760820647399,-600.0,0.00030442,2]
[391789744,1760820647409,-322.6107,0.00030442,2]
[391789746,1760820647418,-151.0,0.00030442,2]
[391789748,1760820647427,-721.12765535,0.00030442,2]
[391789750,1760820647436,-250.0,0.00030442,2]
[391789752,1760820647446,-9552.16786547,0.00030442,2]
[391789754,1760820647454,-250.0,0.00030442,2]
[391789756,1760820647464,-250.0,0.00030442,2]
[391789758,1760820647478,-250.0,0.00030442,2]
[391789761,1760820647488,-250.0,0.00030442,2]
[391789762,1760820647498,-250.0,0.00030442,2]
[391789764,1760820647508,-277.35679052,0.00030442,2]
[391789766,1760820647517,-250.0,0.00030442,2]
[391789769,1760820647527,-250.0,0.00030442,2]
[391789770,1760820647537,-250.0,0.00030442,2]
[391789772,1760820647546,-250.0,0.00030442,2]
[391789774,1760820647555,-250.0,0.00030442,2]
[391789776,1760820647564,-3000.0,0.00030442,2]
[391789778,1760820647574,-3000.0,0.00030442,2]
[391789780,1760820647583,-3000.0,0.00030442,2]
[391789782,1760820647592,-2000.0,0.00030442,2]
[391789784,1760820647601,-250.0,0.00030442,2]
[391789786,1760820647610,-250.0,0.00030442,2]
[391789788,1760820647619,-1000.0,0.00030442,2]
[391789790,1760820647628,-250.0,0.00030442,2]
[391789792,1760820647638,-250.0,0.00030442,2]
[391789794,1760820647648,-1000.0,0.00030442,2]
[391789796,1760820647657,-250.0,0.00030442,2]
[391789798,1760820647667,-1000.0,0.00030442,2]
[391789800,1760820647677,-250.0,0.00030442,2]
[391789802,1760820647687,-250.0,0.00030442,2]
[391789804,1760820647696,-250.0,0.00030442,2]
[391789806,1760820647706,-250.0,0.00030442,2]
[391789808,1760820647715,-250.0,0.00030442,2]
[391789810,1760820647724,-250.0,0.00030442,2]
[391789812,1760820647734,-693.3919763,0.00030442,2]
[391789814,1760820647743,-151.0,0.00030442,2]
[391789816,1760820647753,-9905.5980765,0.00030497,2]
[391789818,1760820647762,-500.0,0.00030551,2]
[391789820,1760820647772,-525.6206167,0.00030551,2]
[391789822,1760820647781,-10272.10520533,0.00030552,2]
[391789824,1760820647792,-9444.67670077,0.00030607,2]
[391789827,1760820647806,-540.0,0.00030607,2]
[391789829,1760820647816,-511.0,0.00030612,30]
[391789831,1760820647829,-155.52029234,0.00030684,2]
[391789833,1760820647839,-503.66,0.00030684,7]
[391789835,1760820647847,-500.0,0.00030684,2]
[391789837,1760820647858,-500.69636851,0.00030721,5]
[391789839,1760820647867,-503.66,0.00030958,7]
[391789841,1760820647879,-500.0,0.00030958,2]
[391789843,1760820647888,-2942.4012,0.00030962,2]
[391789845,1760820647897,-280.5066913,0.0003099,2]
[391789847,1760820647906,-151.0,0.0003099,2]
[391789849,1760820647916,-168.0,0.00031052,2]
[391789851,1760820647924,-12666.90765148,0.00031058,2]
[391789853,1760820647934,-500.0,0.00031168,7]
[391789855,1760820647943,-161.83329338,0.0003117,2]
[391789857,1760820647952,-1095.06,0.00031231,2]
[391789859,1760820647961,-1347.15,0.00031231,2]
[391789861,1760820647970,-500.0,0.00031231,2]
[391789863,1760820647979,-529.20626507,0.00031231,2]
[391789865,1760820647988,-500.0,0.00031231,2]
[391789867,1760820647998,-500.0,0.00031231,2]
[391789869,1760820648006,-519.15257696,0.00031231,2]
[391789871,1760820648015,-500.0,0.00031231,2]
[391789872,1760820648024,-500.0,0.00031231,2]
[391789873,1760820648032,-500.0,0.00031231,2]
[391789874,1760820648041,-500.0,0.00031231,2]
[391789875,1760820648050,-500.0,0.00031231,2]
[391789876,1760820648059,-500.0,0.00031231,2]
[391789877,1760820648068,-548.55028505,0.00031231,2]
[391789878,1760820648077,-500.0,0.00031231,2]
[391789879,1760820648086,-500.0,0.00031231,2]
[391789880,1760820648095,-500.0,0.00031231,2]
[391789881,1760820648103,-500.0,0.00031231,2]
[391789882,1760820648112,-500.0,0.00031231,2]
[391789883,1760820648122,-500.0,0.00031231,2]
[391789884,1760820648131,-534.03785485,0.00031231,2]
[391789886,1760820648139,-500.0,0.00031231,2]
[391789887,1760820648148,-500.0,0.00031231,2]
[391789889,1760820648158,-501.69012674,0.00031231,2]
[391789892,1760820648168,-508.87939337,0.00031231,2]
[391789893,1760820648180,-500.0,0.00031231,2]
[391789896,1760820648189,-500.0,0.00031231,2]
[391789898,1760820648200,-500.0,0.00031231,2]
[391789900,1760820648209,-503.76180397,0.00031231,2]
[391789902,1760820648218,-500.0,0.00031231,2]
[391789904,1760820648227,-501.05584141,0.00031231,2]
[391789906,1760820648237,-500.76242717,0.00031231,2]
[391789908,1760820648247,-500.0,0.00031231,2]
[391789910,1760820648256,-500.0,0.00031231,2]
[391789912,1760820648265,-500.75837712,0.00031231,2]
[391789914,1760820648274,-501.48021783,0.00031231,2]
[391789916,1760820648283,-500.0,0.00031231,2]
[391789918,1760820648293,-500.89258284,0.00031231,2]
[391789919,1760820648302,-500.0,0.00031231,2]
[391789921,1760820648311,-501.90304533,0.00031231,2]
[391789923,1760820648320,-500.0,0.00031231,2]
[391789925,1760820648330,-500.0,0.00031231,2]
[391789927,1760820648339,-501.33930609,0.00031231,2]
[391789929,1760820648348,-502.33595503,0.00031231,2]
[391789931,1760820648359,-502.1807547,0.00031231,2]
[391789933,1760820648368,-501.59678536,0.00031231,2]
[391789935,1760820648377,-502.77779441,0.00031231,2]
[391789937,1760820648386,-500.0,0.00031231,2]
[391789939,1760820648395,-501.3136021,0.00031231,2]
[391789941,1760820648404,-300.0,0.00031231,2]
[391789943,1760820648413,-500.07119748,0.00031231,2]
[391789945,1760820648423,-502.89966769,0.00031231,2]
[391789947,1760820648432,-501.33002622,0.00031231,2]
[391789949,1760820648441,-172.56,0.00031231,2]
[391789951,1760820648450,-501.25428127,0.00031231,2]
[391789953,1760820648459,-502.26928312,0.00031231,2]
[391789955,1760820648468,-501.57554954,0.00031231,2]
[391789957,1760820648478,-500.0,0.00031231,2]
[391789959,1760820648487,-500.0,0.00031231,2]
[391789961,1760820648496,-500.40392514,0.00031231,2]
[391789963,1760820648505,-501.68387321,0.00031231,2]
[391789965,1760820648514,-501.20125161,0.00031231,2]
[391789982,1760820648664,-500.0,0.00031231,2]
[391789984,1760820648675,-504.56981096,0.00031231,2]
[391789986,1760820648684,-500.81205383,0.00031231,2]
[391789988,1760820648694,-500.0,0.00031231,2]
[391789990,1760820648703,-500.0,0.00031231,2]
[391789992,1760820648712,-500.0,0.00031231,2]
[391789994,1760820648722,-514.21537787,0.00031231,2]
[391789996,1760820648731,-500.0,0.00031231,2]
[391789998,1760820648740,-500.0,0.00031231,2]
[391790000,1760820648749,-500.0,0.00031231,2]
[391790002,1760820648758,-500.0,0.00031231,2]
[391790004,1760820648767,-546.47759559,0.00031231,2]
[391790005,1760820648776,-543.07900363,0.00031231,2]
[391790007,1760820648785,-507.77441299,0.00031231,2]
[391790010,1760820648797,-500.0,0.00031231,2]
[391790011,1760820648807,-503.40292419,0.00031231,2]
[391790013,1760820648816,-500.0,0.00031231,2]
[391790015,1760820648826,-500.16447539,0.00031231,2]
[391790018,1760820648837,-551.80223568,0.00031231,2]
[391790019,1760820648846,-500.0,0.00031231,2]
[391790022,1760820648855,-500.0,0.00031231,2]
[391790024,1760820648865,-500.0,0.00031231,2]
[391790026,1760820648875,-500.0,0.00031231,2]
[391790027,1760820648886,-500.0,0.00031231,2]
[391790030,1760820648895,-500.0,0.00031231,2]
[391790031,1760820648905,-585.92538641,0.00031231,2]
[391790033,1760820648915,-349.6638485,0.00031231,2]
[391790034,1760820648925,-500.0,0.00031231,2]
[391790035,1760820648936,-500.78596134,0.00031231,2]
[391790036,1760820648944,-500.0,0.00031231,2]
[391790037,1760820648954,-500.69755701,0.00031231,2]
[391790038,1760820648964,-500.94681057,0.00031231,2]
[391790039,1760820648973,-500.0,0.00031231,2]
[391790040,1760820648982,-500.94181578,0.00031231,2]
[391790041,1760820648991,-500.77210067,0.00031231,2]
[391790042,1760820649001,-588.8236472,0.00031231,2]
[391790043,1760820649011,-228.32832877,0.00031231,2]
[391790044,1760820649020,-500.59716388,0.00031231,2]
[391790045,1760820649030,-596.45195533,0.00031231,2]
[391790046,1760820649039,-503.66,0.00031232,7]
[391790047,1760820649048,-630.80733506,0.00031232,2]
[391790048,1760820649058,-500.74411638,0.00031273,5]
[391790049,1760820649067,-500.0,0.00031273,5]
[391790050,1760820649077,-200.0,0.00031273,5]
[391790051,1760820649087,-500.83660294,0.00031273,5]
[391790052,1760820649098,-163.60366579,0.00031273,5]
[391790053,1760820649107,-168.0,0.00031362,2]
[391790054,1760820649117,-694.95,0.00031397,2]
[391790055,1760820649127,-917.9474609,0.00031427,2]
[391790056,1760820649137,-500.0,0.00031463,2]
[391790057,1760820649146,-500.0,0.00031463,2]
[391790058,1760820649156,-200.0,0.00031463,2]
[391790059,1760820649166,-501.45067121,0.00031463,2]
[391790060,1760820649176,-500.0,0.00031463,2]
[391790061,1760820649185,-500.0,0.00031463,2]
[391790062,1760820649194,-514.87433698,0.00031463,2]
[391790063,1760820649203,-196.0068559,0.00031463,2]
[391790064,1760820649212,-500.0,0.00031463,2]
[391790065,1760820649222,-500.0,0.00031463,2]
[391790066,1760820649231,-592.34364192,0.00031463,2]
[391790067,1760820649240,-246.72376361,0.00031463,2]
[391790068,1760820649249,-644.68621562,0.00031463,2]
[391790069,1760820649259,-500.0,0.00031463,2]
[391790070,1760820649268,-541.89826174,0.00031463,2]
[391790071,1760820649277,-500.0,0.00031463,2]
[391790072,1760820649291,-500.93934236,0.00031463,2]
[391790073,1760820649301,-500.0,0.00031463,2]
[391790074,1760820649312,-2971.34,0.00031463,2]
[391790075,1760820649321,-500.0,0.00031463,2]
[391790076,1760820649331,-500.0,0.00031463,2]
[391790077,1760820649340,-500.0,0.00031463,2]
[391790078,1760820649349,-500.0,0.00031463,2]
[391790079,1760820649358,-500.0,0.00031463,2]
[391790080,1760820649367,-500.0,0.00031463,2]
[391790081,1760820649376,-2566.95,0.00031463,2]
[391790082,1760820649386,-500.0,0.00031463,2]
[391790083,1760820649396,-501.88322392,0.00031463,2]
[391790084,1760820649406,-514.27341954,0.00031463,2]
[391790085,1760820649416,-500.0,0.00031463,2]
[391790086,1760820649425,-501.87847927,0.00031463,2]
[391790087,1760820649435,-509.45505046,0.00031463,2]
[391790088,1760820649444,-345.59918657,0.00031463,2]
[391790089,1760820649453,-508.95745002,0.00031463,2]
[391790090,1760820649463,-500.0,0.00031463,2]
[391790091,1760820649472,-502.89081198,0.00031463,2]
[391790092,1760820649481,-521.64728737,0.00031463,2]
[391790093,1760820649490,-302.83418163,0.00031463,2]
[391790094,1760820649499,-500.0,0.00031463,2]
[391790095,1760820649508,-500.0,0.00031463,2]
[391790096,1760820649520,-502.42582966,0.00031463,2]
[391790097,1760820649531,-504.36676613,0.00031463,2]
[391790098,1760820649540,-500.0,0.00031463,2]
[391790099,1760820649549,-503.4139929,0.00031463,2]
[391790100,1760820649558,-500.0,0.00031463,2]
[391790101,1760820649567,-503.43910346,0.00031463,2]
[391790102,1760820649576,-500.0,0.00031463,2]
[391790103,1760820649585,-505.62939474,0.00031463,2]
[391790104,1760820649595,-500.0,0.00031463,2]
[391790105,1760820649604,-500.0,0.00031463,2]
[391790106,1760820649614,-500.0,0.00031463,2]
[391790107,1760820649623,-500.0,0.00031463,2]
[391790108,1760820649632,-512.59720202,0.00031463,2]
[391790109,1760820649641,-641.44108289,0.00031463,2]
[391790110,1760820649651,-501.51792001,0.00031463,2]
[391790111,1760820649660,-500.0,0.00031463,2]
[391790112,1760820649669,-1576.16,0.00031465,120]
[391790113,1760820649679,-12000.0,0.00031478,5]
[391790114,1760820649688,-1095.06,0.00031505,2]
[391790115,1760820649698,-1347.15,0.00031505,2]
[391790116,1760820649707,-500.0,0.00031505,2]
[391790117,1760820649716,-620.08,0.00031505,2]
[391790118,1760820649726,-500.0,0.00031505,2]
[391790119,1760820649735,-500.0,0.00031505,2]
[391790120,1760820649744,-500.0,0.00031505,2]
[391790121,1760820649753,-500.0,0.00031505,2]
[391790122,1760820649763,-500.0,0.00031505,2]
[391790123,1760820649772,-500.0,0.00031505,2]
[391790124,1760820649781,-627.57,0.00031505,2]
[391790125,1760820649791,-320.75,0.00031505,2]
[391790126,1760820649804,-300.0,0.00031505,2]
[391790127,1760820649815,-413.95,0.00031505,2]
[391790128,1760820649824,-500.0,0.00031505,2]
[391790129,1760820649833,-500.0,0.00031505,2]
[391790130,1760820649844,-503.71,0.00031506,7]
[391790131,1760820649853,-151.0,0.00031538,2]
[391790132,1760820649862,-500.0,0.00031737,2]
[391790133,1760820649872,-2971.34,0.00031737,2]
[391790134,1760820649881,-500.0,0.00031737,2]
[391790135,1760820649890,-500.0,0.00031737,2]
[391790136,1760820649899,-2566.95,0.00031737,2]
[391790137,1760820649908,-500.0,0.00031737,2]
[391790138,1760820649919,-500.0,0.00031737,2]
[391790139,1760820649929,-1095.06,0.00031779,2]
[391790140,1760820649939,-1055.55157483,0.00031779,2]
[391790141,1760820664072,300.0,0.00017419,120]
[391790146,1760820972542,1600.0,0.00025547,120]
[391790147,1760820972737,1600.0,0.0002874,120]
[391790168,1760821656942,-156.50228706,0.00016151,2]
[391790169,1760821658508,-93.49771294,0.00016151,2]
[391790170,1760821658529,-120.68033993,0.00016151,2]
[391790171,1760821660241,-188.56423419,0.00016151,2]
[391790172,1760821661757,-137.36748616,0.00016151,2]
[391790173,1760821661779,-66.18022678,0.00016152,2]
[391790174,1760821666082,-156.80998028,0.00016152,2]
[391790175,1760821669322,-199.51,0.00016152,2]
[391790177,1760821685265,-264.83424814,0.00016152,2]
[391790178,1760821687223,-206.61559828,0.00016152,2]
[391790179,1760821687246,-293.38440172,0.00016152,2]
[391790180,1760821688681,-166.66,0.00016152,2]
[391790181,1760821691380,-39.95559828,0.00016152,2]
[391790182,1760821691402,-258.04946742,0.00016152,2]
[391790183,1760821693525,-55.41635153,0.00016152,2]
[391790184,1760821693550,-127.79283598,0.00016154,2]
[391790185,1760821695042,-323.64480172,0.00016154,2]
[391790186,1760821697649,-158.6219773,0.00016154,2]
[391790187,1760821716350,-13.00098746,0.00016154,2]
[391790188,1760821716374,-393.09338854,0.00016294,2]
[391790189,1760821719012,-319.90661146,0.00016294,2]
[391790190,1760821719035,-13.77307304,0.00016295,2]
[391790193,1760821731310,-198.22692696,0.00016295,2]
[391790194,1760821731335,-60.03266044,0.00016295,2]
[391790195,1760821732817,-239.96733956,0.00016295,2]
[391790196,1760821732843,-1.78936416,0.00016295,2]
[391790197,1760821734842,-166.66,0.00016295,2]
[391790198,1760821737475,-258.88573044,0.00016295,2]
[391790199,1760821740670,-258.24329628,0.00016295,2]
[391790200,1760821742074,-219.85421918,0.00016295,2]
[391790201,1760821760194,-294.56738994,0.00016295,2]
[391790202,1760821760227,-4.84125366,0.00016296,2]
[391790203,1760821763004,-241.75670472,0.00016296,2]
[391790204,1760821764514,-253.40204162,0.00016296,2]
[391790205,1760821764535,-135.73906615,0.00016296,2]
[391790206,1760821766005,-298.76699242,0.00016296,2]
[391790207,1760821768166,-65.49394143,0.00016296,2]
[391790208,1760821768194,-188.91206897,0.00016296,2]
[391790209,1760821773372,-372.7812942,0.00016296,2]
[391790217,1760821832255,-2114.174997,0.00016915,2]
[391790218,1760821832266,-151.0,0.00017483,2]
[391790219,1760821832275,-151.0,0.00017533,2]
[391790220,1760821832284,-151.0,0.00017601,2]
[391790221,1760821832294,-151.0,0.00017669,2]
[391790222,1760821832303,-1200.0,0.00017765,2]
[391790223,1760821832313,-300.0,0.00017765,2]
[391790224,1760821832322,-300.0,0.00017765,2]
[391790225,1760821832331,-420.0,0.00019388,2]
[391790226,1760821832341,-287.0,0.00019388,2]
[391790227,1760821832351,-1680.0,0.00019484,2]
[391790228,1760821832361,-1019.55511465,0.00019815,2]
[391790229,1760821832371,-193.02,0.00020841,2]
[391790230,1760821832379,-507.12841592,0.0002284,2]
[391790231,1760821832388,-503.33932183,0.0002284,2]
[391790232,1760821832398,-838.0,0.00024058,2]
[391790233,1760821832409,-200.0,0.00024059,2]
[391790234,1760821832418,-200.0,0.00024059,2]
[391790235,1760821832427,-200.0,0.00024059,2]
[391790236,1760821832437,-151.0,0.00024059,2]
[391790237,1760821832446,-151.0,0.00024059,2]
[391790238,1760821832455,-151.0,0.00024059,2]
[391790239,1760821832464,-264.4478428,0.00024059,2]
[391790240,1760821832474,-151.0,0.00024059,2]
[391790241,1760821832484,-151.0,0.00024059,2]
[391790242,1760821832494,-151.0,0.00024059,2]
[391790244,1760821832504,-151.0,0.00024059,2]
[391790246,1760821832514,-151.0,0.00024059,2]
[391790248,1760821832523,-151.0,0.00024059,2]
[391790249,1760821832533,-151.0,0.00024059,2]
[391790252,1760821832543,-151.0,0.00024059,2]
[391790254,1760821832552,-151.0,0.00024059,2]
[391790256,1760821832562,-500.0,0.00024059,2]
[391790257,1760821832571,-151.0,0.00024059,2]
[391790260,1760821832582,-151.0,0.00024059,2]
[391790262,1760821832592,-500.0,0.00024059,2]
[391790264,1760821832602,-151.0,0.00024059,2]
[391790266,1760821832611,-151.0,0.00024059,2]
[391790268,1760821832621,-151.0,0.00024059,2]
[391790270,1760821832632,-500.0,0.00024059,2]
[391790272,1760821832642,-151.0,0.00024059,2]
[391790273,1760821832651,-151.0,0.00024059,2]
[391790274,1760821832661,-500.0,0.00024059,2]
[391790275,1760821832670,-151.0,0.00024059,2]
[391790276,1760821832679,-151.0,0.00024059,2]
[391790277,1760821832688,-500.0,0.00024059,2]
[391790278,1760821832698,-151.0,0.00024059,2]
[391790279,1760821832707,-151.0,0.00024059,2]
[391790280,1760821832716,-500.0,0.00024059,2]
[391790281,1760821832726,-151.0,0.00024059,2]
[391790282,1760821832735,-151.0,0.00024059,2]
[391790283,1760821832745,-500.0,0.00024059,2]
[391790284,1760821832755,-151.0,0.00024059,2]
[391790285,1760821832764,-151.0,0.00024059,2]
[391790286,1760821832774,-500.0,0.00024059,2]
[391790287,1760821832783,-151.0,0.00024059,2]
[391790288,1760821832794,-151.0,0.00024059,2]
[391790289,1760821832803,-337.32838914,0.00024059,2]
[391790290,1760821832812,-151.0,0.00024059,2]
[391790291,1760821832822,-151.0,0.00024059,2]
[391790292,1760821832831,-151.0,0.00024059,2]
[391790293,1760821832840,-231.51645564,0.00024209,2]
[391790294,1760821832849,-202.83835442,0.00024607,2]
[391790295,1760821832859,-183.38,0.00024658,2]
[391790296,1760821832869,-2307.0,0.000249,5]
[391790297,1760821832878,-500.0,0.00024932,2]
[391790298,1760821832887,-2000.0,0.00025,2]
[391790299,1760821832896,-179.50913686,0.000253,2]
[391790300,1760821832906,-200.07376135,0.000253,2]
[391790301,1760821832915,-181.6979788,0.000253,2]
[391790302,1760821832924,-4.68114777,0.000253,2]
[391790303,1760821832937,-293.53005078,0.000253,2]
[391790304,1760821832946,-211.51253038,0.000253,2]
[391790305,1760821832956,-475.74147678,0.00025358,2]
[391790306,1760821832965,-166.4,0.00025424,2]
[391790307,1760821832974,-243.71183747,0.0002549,2]
[391790308,1760821832984,-296.16,0.00025547,2]
[391790309,1760821832993,-3292.01,0.00025598,2]
[391790310,1760821833003,-86.18421862,0.000256,2]
[391790311,1760821833096,-95.51376018,0.000256,2]
[391790312,1760821833107,-298.21119855,0.000256,2]
[391790313,1760821833117,-181.6979788,0.000259,2]
[391790314,1760821833127,-298.21119855,0.000259,2]
[391790315,1760821833136,-181.6979788,0.000261,2]
[391790316,1760821833146,-298.21119855,0.000261,2]
[391790317,1760821833156,-1432.67,0.00026356,2]
[391790318,1760821833165,-298.21119855,0.000264,2]
[391790319,1760821833177,-1079.9286,0.00026685,10]
[391790320,1760821833189,-124.04688802,0.00026739,2]
[391790321,1760821833207,-25.95311198,0.00026739,2]
[391790322,1760821833217,-994.48,0.00026819,2]
[391790323,1760821833227,-769.307,0.00026888,14]
[391790324,1760821833238,-1991.0,0.000282,2]
[391790325,1760821833247,-375.57,0.00028211,30]
[391790326,1760821833257,-150.0,0.00029145,7]
[391790327,1760821833269,-500.0,0.00029233,2]
[391790328,1760821833279,-375.57,0.00029921,30]
[391790329,1760821833288,-4000.0,0.00030137,2]
[391790330,1760821833298,-154.25226641,0.00030225,2]
[391790331,1760821833308,-9552.16786547,0.00030225,2]
[391790332,1760821833319,-151.0,0.00030225,2]
[391790333,1760821833330,-3000.0,0.00030225,2]
[391790334,1760821833341,-1000.0,0.00030225,2]
[391790335,1760821833351,-151.0,0.00030225,2]
[391790336,1760821833361,-693.3919763,0.00030225,2]
[391790337,1760821833371,-3000.0,0.00030225,2]
[391790338,1760821833380,-1000.0,0.00030225,2]
[391790339,1760821833389,-175.60246086,0.00030225,2]
[391790340,1760821833399,-3000.0,0.00030225,2]
[391790341,1760821833408,-1000.0,0.00030225,2]
[391790342,1760821833418,-3000.0,0.00030225,2]
[391790343,1760821833428,-1000.0,0.00030225,2]
[391790344,1760821833438,-250.0,0.00030225,2]
[391790345,1760821833449,-1000.0,0.00030225,2]
[391790346,1760821833460,-250.0,0.00030225,2]
[391790347,1760821833470,-151.0,0.00030225,2]
[391790348,1760821833480,-1000.0,0.00030225,2]
[391790349,1760821833489,-250.0,0.00030225,2]
[391790350,1760821833500,-1000.0,0.00030225,2]
[391790351,1760821833509,-250.0,0.00030225,2]
[391790352,1760821833519,-1000.0,0.00030225,2]
[391790353,1760821833529,-250.0,0.00030225,2]
[391790354,1760821833538,-1000.0,0.00030225,2]
[391790355,1760821833548,-250.0,0.00030225,2]
[391790356,1760821833559,-1056.6853117,0.00030225,2]
[391790357,1760821833568,-250.0,0.00030225,2]
[391790358,1760821833578,-250.0,0.00030225,2]